[Event "WSCC  M50 2019"]
[Site "Bucharest"]
[Date "2019.11.12"]
[Round "1.9"]
[White "Georgiev, Kiril"]
[Black "Gavrish, Leonid"]
[Result "1-0"]
[ECO "A05"]
[WhiteElo "2582"]
[BlackElo "2077"]
[Annotator "ChessBase"]
[PlyCount "53"]
[EventDate "2019.11.12"]
[EventType "swiss"]
[EventCountry "ROU"]
[SourceTitle "playchess.com"]
[Source "ChessBase"]
[SourceQuality "1"]
[TimeControl "40/5400+30:1800+30"]

1. Nf3 {[%emt 0:00:00]} Nf6 {[%emt 0:00:00]} 2. c4 {[%emt 0:00:00]} c5 {[%emt 0:00:00]} 3. Nc3 {[%emt 0:00:05]} g6 {[%emt 0:00:00]} 4. d4 {[%emt 0:00:11]} cxd4 {[%emt 0:00:00]} 5. Nxd4 {[%emt 0:00:07]} Nc6 {[%emt 0:00:00]} 6. Nc2 {[%emt 0:00:13]} Bg7 {[%emt 0:00:11]} 7. e4 {[%emt 0:00:05]} d6 {[%emt 0:00:20]} 8. Be2 {[%emt 0:00:07]} O-O {[%emt 0:00:09]} 9. O-O {[%emt 0:00:10]} Nd7 {[%emt 0:00:33]} 10. Bd2 {[%emt 0:00:14]} Nc5 {[%emt 0:00:33]} 11. f3 {[%emt 0:00:43]} a5 {[%emt 0:03:31]} 12. Be3 {[%emt 0:05:09]} f5 {[%emt 0:02:57]} 13. exf5 {[%emt 0:01:05]} gxf5 {[%emt 0:08:42]} 14. Qd2 {[%emt 0:01:00]} a4 {[%emt 0:07:30]} 15. Na3 {[%emt 0:03:04]} Qa5 {[%emt 0:09:20]} 16. Rfd1 {[%emt 0:11:36]} Be6 {[%emt 0:13:46]} 17. Rab1 {[%emt 0:04:20]} Kh8 {[%emt 0:12:13]} 18. Kh1 {[%emt 0:01:08]} Rac8 {[%emt 0:14:59]} 19. Bh6 {[%emt 0:03:51]} Bxh6 {[%emt 0:02:53]} 20. Qxh6 {[%emt 0:00:18]} f4 {[%emt 0:07:03]} 21. Qh4 {[%emt 0:07:10]} Rf6 {[%emt 0:01:22]} 22. Rxd6 {[%emt 0:01:55]} Rcf8 {[%emt 0:06:41]} 23. Rd2 {[%emt 0:01:21]} Bf5 {[%emt 0:04:42]} 24. Rbd1 {[%emt 0:01:05]} e6 {[%emt 0:01:48]} 25. Nab5 {[%emt 0:01:28]} Ne5 {[%emt 0:01:41]} 26. Rd8 {[%emt 0:05:11]} Ng6 {[%emt 0:01:12]} 27. Qxf6+ {[%emt 0:00:17]} 1-0

[Event "WSCC  M50 2019"]
[Site "Bucharest"]
[Date "2019.11.12"]
[Round "1.10"]
[White "Gayson, Peter M"]
[Black "Lima, Darcy"]
[Result "1-0"]
[ECO "B03"]
[WhiteElo "2075"]
[BlackElo "2540"]
[Annotator "ChessBase"]
[PlyCount "77"]
[EventDate "2019.11.12"]
[EventType "swiss"]
[EventCountry "ROU"]
[SourceTitle "playchess.com"]
[Source "ChessBase"]
[SourceQuality "1"]
[TimeControl "40/5400+30:1800+30"]

1. e4 {[%emt 0:00:00]} Nf6 {[%emt 0:00:00]} 2. e5 {[%emt 0:00:17]} Nd5 {[%emt 0:00:01]} 3. d4 {[%emt 0:00:16]} d6 {[%emt 0:00:06]} 4. c4 {[%emt 0:00:25]} Nb6 {[%emt 0:00:08]} 5. f4 {[%emt 0:00:18]} g6 {[%emt 0:00:56]} 6. Nf3 {[%emt 0:01:30]} Bg7 {[%emt 0:02:53]} 7. Nc3 {[%emt 0:01:02]} dxe5 {[%emt 0:03:10]} 8. fxe5 {[%emt 0:06:42]} Bg4 {[%emt 0:03:57]} 9. c5 {[%emt 0:07:50]} Nc8 {[%emt 0:04:35]} 10. Be3 {[%emt 0:08:04]} b6 {[%emt 0:01:34]} 11. h3 {[%emt 0:10:22]} Bd7 {[%emt 0:03:18]} 12. Bc4 {[%emt 0:03:19]} bxc5 {[%emt 0:02:24]} 13. Bxf7+ {[%emt 0:12:47]} Kxf7 {[%emt 0:00:06]} 14. e6+ {[%emt 0:02:48]} Ke8 {[%emt 0:01:20]} 15. exd7+ {[%emt 0:07:43]} Qxd7 {[%emt 0:00:09]} 16. O-O {[%emt 0:03:38]} Nd6 {[%emt 0:21:15]} 17. dxc5 {[%emt 0:11:16]} Nf5 {[%emt 0:00:25]} 18. Bf4 {[%emt 0:03:01]} Bxc3 {[%emt 0:13:39]} 19. bxc3 {[%emt 0:01:04]} Qxd1 {[%emt 0:00:04]} 20. Raxd1 {[%emt 0:01:09]} Na6 {[%emt 0:05:11]} 21. g4 {[%emt 0:02:26]} Ng7 {[%emt 0:01:16]} 22. Be5 {[%emt 0:06:52]} Rg8 {[%emt 0:00:48]} 23. Ng5 {[%emt 0:04:33]} h6 {[%emt 0:08:24]} 24. Bxg7 {[%emt 0:01:02]} hxg5 {[%emt 0:00:16]} 25. Be5 {[%emt 0:01:39]} c6 {[%emt 0:05:39]} 26. Rde1 {[%emt 0:01:22]} Kd7 {[%emt 0:03:21]} 27. Rd1+ {[%emt 0:00:08]} Ke8 {[%emt 0:01:15]} 28. Rde1 {[%emt 0:00:12]} Kd7 {[%emt 0:05:43]} 29. Rd1+ {[%emt 0:00:19]} Ke6 {[%emt 0:00:39]} 30. Rfe1 {[%emt 0:00:56]} Rge8 {[%emt 0:00:44]} 31. Bd4+ {[%emt 0:01:18]} Kf7 {[%emt 0:00:05]} 32. Re5 {[%emt 0:00:39]} Rad8 {[%emt 0:00:04]} 33. Rf1+ {[%emt 0:00:21]} Kg7 {[%emt 0:01:28]} 34. Re6+ {[%emt 0:00:42]} Kh6 {[%emt 0:00:30]} 35. Rf7 {[%emt 0:00:16]} Nc7 {[%emt 0:00:19]} 36. Bg7+ {[%emt 0:00:23]} Kh7 {[%emt 0:00:03]} 37. Be5+ {[%emt 0:00:46]} Kg8 {[%emt 0:00:09]} 38. Rg7+ {[%emt 0:00:39]} Kf8 {[%emt 0:00:02]} 39. Rexg6 1-0

[Event "WSCC  M50 2019"]
[Site "Bucharest"]
[Date "2019.11.12"]
[Round "1.11"]
[White "Sturua, Zurab"]
[Black "Cmiel, Thorsten"]
[Result "1-0"]
[ECO "A31"]
[WhiteElo "2540"]
[BlackElo "2068"]
[Annotator "ChessBase"]
[PlyCount "69"]
[EventDate "2019.11.12"]
[EventType "swiss"]
[EventCountry "ROU"]
[SourceTitle "playchess.com"]
[Source "ChessBase"]
[SourceQuality "1"]
[TimeControl "40/5400+30:1800+30"]

1. c4 {[%emt 0:00:00]} c5 {[%emt 0:03:36]} 2. Nf3 {[%emt 0:00:17]} Nf6 {[%emt 0:02:15]} 3. d4 {[%emt 0:02:10]} cxd4 {[%emt 0:00:11]} 4. Nxd4 {[%emt 0:00:05]} Nc6 {[%emt 0:02:22]} 5. Nc3 {[%emt 0:01:02]} g6 {[%emt 0:00:28]} 6. Nc2 {[%emt 0:01:21]} Bg7 {[%emt 0:00:46]} 7. e4 {[%emt 0:00:21]} O-O {[%emt 0:00:23]} 8. Be2 {[%emt 0:00:06]} d6 {[%emt 0:01:01]} 9. O-O {[%emt 0:00:10]} Nd7 {[%emt 0:00:14]} 10. Bd2 {[%emt 0:00:24]} Nc5 {[%emt 0:00:13]} 11. b4 {[%emt 0:01:52]} Bxc3 {[%emt 0:00:38]} 12. Bxc3 {[%emt 0:00:08]} Nxe4 {[%emt 0:00:08]} 13. Bb2 {[%emt 0:00:12]} Nf6 {[%emt 0:06:28]} 14. Qd2 {[%emt 0:02:29]} Be6 {[%emt 0:02:44]} 15. Rfd1 {[%emt 0:26:18]} Qb8 {[%emt 0:07:04]} 16. Qg5 {[%emt 0:10:06]} a5 {[%emt 0:15:29]} 17. b5 {[%emt 0:00:57]} Ne5 {[%emt 0:00:08]} 18. Ne3 {[%emt 0:03:14]} Rc8 {[%emt 0:00:16]} 19. f4 {[%emt 0:03:54]} Nxc4 {[%emt 0:05:00]} 20. Bxc4 {[%emt 0:01:13]} Bxc4 {[%emt 0:00:30]} 21. Nf5 {[%emt 0:13:22]} Qc7 {[%emt 0:03:32]} 22. Nh6+ {[%emt 0:05:12]} Kg7 {[%emt 0:08:32]} 23. Nf5+ {[%emt 0:00:06]} Kg8 {[%emt 0:00:07]} 24. Nh6+ {[%emt 0:00:04]} Kg7 {[%emt 0:00:17]} 25. Ng4 {[%emt 0:00:05]} Qc5+ {[%emt 0:02:07]} 26. Kh1 {[%emt 0:04:45]} Qf5 {[%emt 0:02:50]} 27. Ne3 {[%emt 0:04:31]} Qe4 {[%emt 0:04:09]} 28. Ng4 {[%emt 0:11:27]} Qf5 {[%emt 0:00:52]} 29. a4 {[%emt 0:00:27]} Be6 {[%emt 0:08:55]} 30. Ne3 {[%emt 0:00:12]} Qe4 {[%emt 0:01:46]} 31. Qg3 {[%emt 0:00:29]} Qb4 {[%emt 0:04:33]} 32. Rab1 {[%emt 0:03:13]} Qxa4 {[%emt 0:06:59]} 33. f5 {[%emt 0:00:06]} Bb3 {[%emt 0:01:00]} 34. fxg6 {[%emt 0:00:57]} hxg6 {[%emt 0:00:32]} 35. Bxf6+ {[%emt 0:01:20]} 1-0

[Event "WSCC  M50 2019"]
[Site "Bucharest"]
[Date "2019.11.12"]
[Round "1.12"]
[White "Moise, Octavian-Mirel"]
[Black "Shabalov, Alexander"]
[Result "1/2-1/2"]
[ECO "A57"]
[WhiteElo "2068"]
[BlackElo "2528"]
[Annotator "ChessBase"]
[PlyCount "55"]
[EventDate "2019.11.12"]
[EventType "swiss"]
[EventCountry "ROU"]
[SourceTitle "playchess.com"]
[Source "ChessBase"]
[SourceQuality "1"]
[TimeControl "40/5400+30:1800+30"]

1. d4 {[%emt 0:00:00]} Nf6 {[%emt 0:00:00]} 2. c4 {[%emt 0:00:00]} c5 {[%emt 0:00:00]} 3. d5 {[%emt 0:00:21]} b5 {[%emt 0:00:00]} 4. Qc2 {[%emt 0:00:29]} g6 {[%emt 0:01:47]} 5. e4 {[%emt 0:01:46]} Bg7 {[%emt 0:00:30]} 6. cxb5 {[%emt 0:05:16]} O-O {[%emt 0:00:17]} 7. Bd3 {[%emt 0:05:16]} d6 {[%emt 0:03:10]} 8. Nc3 {[%emt 0:02:54]} a6 {[%emt 0:00:21]} 9. h3 {[%emt 0:03:39]} e6 {[%emt 0:10:41]} 10. Nf3 {[%emt 0:08:09]} exd5 {[%emt 0:02:57]} 11. exd5 {[%emt 0:00:42]} Bb7 {[%emt 0:03:08]} 12. O-O {[%emt 0:05:07]} axb5 {[%emt 0:01:18]} 13. Bxb5 {[%emt 0:04:20]} Nxd5 {[%emt 0:00:12]} 14. Bg5 {[%emt 0:10:07]} Qa5 {[%emt 0:03:35]} 15. Nxd5 {[%emt 0:05:33]} Bxd5 {[%emt 0:01:19]} 16. Be2 {[%emt 0:00:47]} Nc6 {[%emt 0:04:04]} 17. Bd2 {[%emt 0:05:05]} Qb6 {[%emt 0:14:27]} 18. Bc3 Nb4 {[%emt 0:05:10]} 19. Qd2 {[%emt 0:18:58]} Bxa2 {[%emt 0:00:08]} 20. Bxg7 {[%emt 0:01:22]} Kxg7 {[%emt 0:00:07]} 21. h4 {[%emt 0:05:05]} d5 {[%emt 0:05:42]} 22. Ne5 {[%emt 0:00:59]} Rfe8 {[%emt 0:03:53]} 23. Ng4 {[%emt 0:05:54]} f5 {[%emt 0:15:03]} 24. Qh6+ {[%emt 0:00:53]} Kh8 {[%emt 0:00:20]} 25. Ne3 {[%emt 0:00:45]} Qf6 {[%emt 0:01:23]} 26. Bf3 {[%emt 0:01:18]} Ra6 {[%emt 0:04:14]} 27. Rfe1 {[%emt 0:06:02]} Rf8 {[%emt 0:09:07]} 28. Nxd5 {[%emt 0:00:37]} 1/2-1/2

[Event "WSCC  M50 2019"]
[Site "Bucharest"]
[Date "2019.11.12"]
[Round "1.17"]
[White "Dvoirys, Semen I."]
[Black "Goater, Kevin P"]
[Result "0-1"]
[ECO "B15"]
[WhiteElo "2490"]
[BlackElo "2061"]
[Annotator "ChessBase"]
[PlyCount "60"]
[EventDate "2019.11.12"]
[EventType "swiss"]
[EventCountry "ROU"]
[SourceTitle "playchess.com"]
[Source "ChessBase"]
[SourceQuality "1"]
[TimeControl "40/5400+30:1800+30"]

1. e4 {[%emt 0:00:00]} c6 {[%emt 0:00:00]} 2. d4 {[%emt 0:00:00]} d5 {[%emt 0:00:00]} 3. Nd2 {[%emt 0:00:00]} dxe4 {[%emt 0:00:00]} 4. Nxe4 {[%emt 0:00:00]} Nf6 {[%emt 0:00:37]} 5. Nxf6+ {[%emt 0:00:00]} exf6 {[%emt 0:00:07]} 6. Bc4 {[%emt 0:00:13]} Bd6 {[%emt 0:01:36]} 7. Ne2 {[%emt 0:00:37]} Qc7 {[%emt 0:02:39]} 8. Ng3 {[%emt 0:01:08]} O-O {[%emt 0:00:57]} 9. O-O {[%emt 0:00:13]} Re8 {[%emt 0:12:13]} 10. Qh5 {[%emt 0:01:45]} g6 {[%emt 0:11:54]} 11. Qh4 {[%emt 0:00:48]} Be6 {[%emt 0:13:16]} 12. Ne4 {[%emt 0:16:18]} Nd7 {[%emt 0:03:40]} 13. Nxd6 {[%emt 0:04:04]} Qxd6 {[%emt 0:00:11]} 14. Bb3 {[%emt 0:01:42]} Bxb3 {[%emt 0:22:18]} 15. axb3 {[%emt 0:00:07]} Re6 {[%emt 0:03:06]} 16. Bf4 {[%emt 0:02:58]} Qe7 {[%emt 0:00:49]} 17. Qg3 {[%emt 0:01:56]} a6 {[%emt 0:00:50]} 18. c4 {[%emt 0:04:40]} Re4 {[%emt 0:04:28]} 19. Rad1 {[%emt 0:04:47]} Re8 {[%emt 0:02:35]} 20. Bd6 {[%emt 0:09:47]} Qe6 {[%emt 0:02:19]} 21. Bb4 {[%emt 0:05:44]} b5 {[%emt 0:05:09]} 22. Qc3 {[%emt 0:07:48]} c5 {[%emt 0:02:47]} 23. dxc5 {[%emt 0:01:38]} bxc4 {[%emt 0:00:29]} 24. f3 {[%emt 0:03:45]} Re2 {[%emt 0:02:32]} 25. bxc4 {[%emt 0:01:55]} Ne5 {[%emt 0:01:33]} 26. b3 {[%emt 0:01:39]} Qf5 {[%emt 0:01:33]} 27. Rf2 {[%emt 0:13:17]} Nc6 {[%emt 0:01:47]} 28. Rdf1 {[%emt 0:09:05]} R2e3 {[%emt 0:01:59]} 29. Qd2 {[%emt 0:00:57]} Rd3 {[%emt 0:00:16]} 30. Re1 {[%emt 0:00:17]} Red8 {[%emt 0:00:27]} 0-1

[Event "WSCC  M50 2019"]
[Site "Bucharest"]
[Date "2019.11.12"]
[Round "1.19"]
[White "Soffer, Ram"]
[Black "Cetinkaya, Vedat Ali"]
[Result "1-0"]
[ECO "B10"]
[WhiteElo "2485"]
[BlackElo "2046"]
[Annotator "ChessBase"]
[PlyCount "87"]
[EventDate "2019.11.12"]
[EventType "swiss"]
[EventCountry "ROU"]
[SourceTitle "playchess.com"]
[Source "ChessBase"]
[SourceQuality "1"]
[TimeControl "40/5400+30:1800+30"]

1. e4 {[%emt 0:00:00]} c6 {[%emt 0:00:00]} 2. Nf3 {[%emt 0:00:00]} d5 {[%emt 0:00:14]} 3. Nc3 {[%emt 0:00:00]} e6 {[%emt 0:00:27]} 4. d4 {[%emt 0:01:12]} Nf6 {[%emt 0:00:29]} 5. Bd3 {[%emt 0:03:11]} Be7 {[%emt 0:04:21]} 6. e5 {[%emt 0:01:49]} Nfd7 {[%emt 0:00:15]} 7. Ne2 {[%emt 0:00:08]} c5 {[%emt 0:00:19]} 8. c3 {[%emt 0:00:04]} Nc6 {[%emt 0:00:20]} 9. O-O {[%emt 0:00:39]} O-O {[%emt 0:01:56]} 10. Nf4 {[%emt 0:08:38]} Re8 {[%emt 0:06:36]} 11. a3 {[%emt 0:03:28]} a5 {[%emt 0:03:11]} 12. Re1 {[%emt 0:03:58]} Nf8 {[%emt 0:00:57]} 13. Nh5 {[%emt 0:00:59]} g6 {[%emt 0:25:24]} 14. Ng3 {[%emt 0:09:42]} cxd4 {[%emt 0:00:49]} 15. cxd4 {[%emt 0:01:55]} f6 {[%emt 0:00:10]} 16. Qd2 {[%emt 0:11:18]} b6 {[%emt 0:14:42]} 17. Bb5 {[%emt 0:05:56]} Bd7 {[%emt 0:01:59]} 18. exf6 {[%emt 0:00:17]} Bxf6 {[%emt 0:00:16]} 19. Bxc6 {[%emt 0:00:52]} Bxc6 {[%emt 0:00:20]} 20. Qf4 {[%emt 0:00:51]} Rc8 {[%emt 0:09:04]} 21. Nf1 {[%emt 0:04:35]} Ba4 {[%emt 0:05:40]} 22. Ne3 {[%emt 0:00:58]} Bg7 {[%emt 0:02:39]} 23. Ng4 {[%emt 0:01:34]} Qc7 {[%emt 0:04:56]} 24. Nh6+ {[%emt 0:02:57]} Bxh6 {[%emt 0:00:56]} 25. Qxh6 {[%emt 0:00:03]} Qg7 {[%emt 0:01:09]} 26. Qh4 {[%emt 0:00:53]} Nd7 {[%emt 0:00:46]} 27. Bh6 {[%emt 0:03:07]} Qf6 {[%emt 0:01:11]} 28. Bg5 {[%emt 0:00:12]} Qg7 {[%emt 0:00:09]} 29. Re3 {[%emt 0:04:35]} Bc2 {[%emt 0:01:46]} 30. Nd2 {[%emt 0:12:12]} Bf5 {[%emt 0:04:06]} 31. Rae1 {[%emt 0:10:03]} Rc2 {[%emt 0:01:44]} 32. Nf1 {[%emt 0:00:33]} Rc4 {[%emt 0:01:44]} 33. Rd1 {[%emt 0:05:09]} a4 {[%emt 0:00:52]} 34. Ng3 {[%emt 0:00:59]} Bc2 {[%emt 0:00:55]} 35. Rd2 {[%emt 0:00:48]} Be4 {[%emt 0:00:13]} 36. h3 {[%emt 0:00:42]} Rxd4 {[%emt 0:00:57]} 37. Nxe4 {[%emt 0:00:56]} dxe4 {[%emt 0:00:23]} 38. Bf6 {[%emt 0:01:25]} Nxf6 {[%emt 0:02:53]} 39. Rxd4 {[%emt 0:00:03]} g5 {[%emt 0:01:58]} 40. Qg3 {[%emt 0:00:00]} Nh5 {[%emt 0:00:00]} 41. Qd6 {[%emt 0:00:47]} Nf4 {[%emt 0:01:16]} 42. Rexe4 {[%emt 0:01:45]} b5 {[%emt 0:02:24]} 43. Qe5 {[%emt 0:02:02]} Qg6 {[%emt 0:00:57]} 44. Rxf4 {[%emt 0:01:21]} 1-0

[Event "WSCC  M50 2019"]
[Site "Bucharest"]
[Date "2019.11.12"]
[Round "1.20"]
[White "Minescu, Dragos-Olivar"]
[Black "Pavlovic, Milos"]
[Result "0-1"]
[ECO "A10"]
[WhiteElo "2046"]
[BlackElo "2482"]
[Annotator "ChessBase"]
[PlyCount "42"]
[EventDate "2019.11.12"]
[EventType "swiss"]
[EventCountry "ROU"]
[SourceTitle "playchess.com"]
[Source "ChessBase"]
[SourceQuality "1"]
[TimeControl "40/5400+30:1800+30"]

1. c4 {[%emt 0:05:53]} g6 {[%emt 0:00:51]} 2. d4 {[%emt 0:00:19]} Bg7 {[%emt 0:01:21]} 3. Nc3 {[%emt 0:00:07]} d6 {[%emt 0:00:59]} 4. e4 {[%emt 0:00:45]} Nf6 {[%emt 0:00:19]} 5. f3 {[%emt 0:04:43]} O-O {[%emt 0:00:24]} 6. Be3 {[%emt 0:00:03]} Nbd7 {[%emt 0:07:31]} 7. Qd2 {[%emt 0:02:55]} a6 {[%emt 0:00:14]} 8. g4 {[%emt 0:01:48]} c5 {[%emt 0:01:29]} 9. d5 {[%emt 0:01:23]} b5 {[%emt 0:02:00]} 10. cxb5 {[%emt 0:00:18]} Qa5 {[%emt 0:00:07]} 11. Bh6 {[%emt 0:12:51]} Bxh6 {[%emt 0:06:43]} 12. Qxh6 {[%emt 0:01:46]} axb5 {[%emt 0:00:05]} 13. Bxb5 {[%emt 0:01:14]} Ne5 {[%emt 0:00:21]} 14. O-O-O {[%emt 0:19:26]} Ba6 {[%emt 0:02:11]} 15. Bxa6 {[%emt 0:01:43]} Qxa6 {[%emt 0:01:44]} 16. Nh3 {[%emt 0:18:48]} Rfb8 {[%emt 0:03:07]} 17. Nf2 {[%emt 0:06:27]} Qc4 {[%emt 0:04:53]} 18. Qd2 {[%emt 0:12:34]} Rxa2 {[%emt 0:00:35]} 19. Qc2 {[%emt 0:00:15]} Ra1+ {[%emt 0:04:18]} 20. Nb1 {[%emt 0:01:41]} Rxb2 {[%emt 0:00:22]} 21. Kxb2 {[%emt 0:02:11]} Ra2+ {[%emt 0:00:02]} 0-1

[Event "WSCC  M50 2019"]
[Site "Bucharest"]
[Date "2019.11.12"]
[Round "1.21"]
[White "Movsziszian, Karen"]
[Black "Smith, Peter R"]
[Result "1-0"]
[ECO "A00"]
[WhiteElo "2470"]
[BlackElo "2044"]
[Annotator "ChessBase"]
[PlyCount "67"]
[EventDate "2019.11.12"]
[EventType "swiss"]
[EventCountry "ROU"]
[SourceTitle "playchess.com"]
[Source "ChessBase"]
[SourceQuality "1"]
[TimeControl "40/5400+30:1800+30"]

1. g3 {[%emt 0:00:00]} g6 {[%emt 0:00:00]} 2. Bg2 {[%emt 0:00:00]} Bg7 {[%emt 0:00:00]} 3. d3 {[%emt 0:00:00]} d6 {[%emt 0:00:37]} 4. f4 {[%emt 0:01:29]} e5 {[%emt 0:02:46]} 5. Nc3 {[%emt 0:00:19]} Ne7 {[%emt 0:02:29]} 6. Nf3 {[%emt 0:03:39]} O-O {[%emt 0:02:24]} 7. O-O {[%emt 0:00:08]} Nbc6 {[%emt 0:02:02]} 8. e4 {[%emt 0:01:05]} Nd4 {[%emt 0:10:06]} 9. Nxd4 {[%emt 0:09:00]} exd4 {[%emt 0:00:03]} 10. Ne2 {[%emt 0:00:04]} f5 {[%emt 0:08:02]} 11. c3 {[%emt 0:00:39]} dxc3 {[%emt 0:03:54]} 12. bxc3 {[%emt 0:00:35]} c5 {[%emt 0:07:16]} 13. Qb3+ {[%emt 0:05:53]} Kh8 {[%emt 0:00:39]} 14. Be3 {[%emt 0:00:15]} Qc7 {[%emt 0:01:52]} 15. Rad1 {[%emt 0:09:40]} Bd7 {[%emt 0:11:06]} 16. Rfe1 {[%emt 0:08:22]} Bc6 {[%emt 0:04:11]} 17. c4 {[%emt 0:05:02]} Rfe8 {[%emt 0:09:07]} 18. Nc3 {[%emt 0:01:22]} a6 {[%emt 0:06:56]} 19. d4 {[%emt 0:10:22]} fxe4 {[%emt 0:07:01]} 20. dxc5 {[%emt 0:01:04]} dxc5 {[%emt 0:02:19]} 21. Bxc5 {[%emt 0:01:15]} Nf5 {[%emt 0:00:56]} 22. Bb6 {[%emt 0:00:53]} Qf7 {[%emt 0:01:56]} 23. Nxe4 {[%emt 0:00:53]} Bxe4 {[%emt 0:03:23]} 24. Bxe4 {[%emt 0:01:10]} Rac8 {[%emt 0:01:41]} 25. Bf2 {[%emt 0:07:25]} h5 {[%emt 0:02:36]} 26. Bd5 {[%emt 0:03:26]} Rxe1+ {[%emt 0:01:12]} 27. Rxe1 {[%emt 0:00:06]} Qc7 {[%emt 0:00:42]} 28. Qd3 {[%emt 0:09:16]} Rd8 {[%emt 0:01:03]} 29. Re6 {[%emt 0:02:11]} Qf7 {[%emt 0:01:44]} 30. Rb6 {[%emt 0:01:49]} Qe8 {[%emt 0:01:18]} 31. Rxb7 {[%emt 0:00:21]} Qa4 {[%emt 0:01:54]} 32. h3 {[%emt 0:02:58]} Nd6 {[%emt 0:00:21]} 33. Rc7 {[%emt 0:03:54]} Qa5 {[%emt 0:01:52]} 34. Qxg6 {[%emt 0:00:41]} 1-0

[Event "WSCC  M50 2019"]
[Site "Bucharest"]
[Date "2019.11.12"]
[Round "1.22"]
[White "Telea, Stefan"]
[Black "Psakhis, Lev"]
[Result "0-1"]
[ECO "A04"]
[WhiteElo "2028"]
[BlackElo "2461"]
[Annotator "RC"]
[PlyCount "94"]
[EventDate "2019.11.12"]
[EventType "swiss"]
[EventCountry "ROU"]
[SourceTitle "playchess.com"]
[Source "ChessBase"]
[SourceQuality "1"]
[TimeControl "40/5400+30:1800+30"]

1. Nf3 {[%emt 0:00:00]} c5 {[%emt 0:00:00]} 2. g3 {[%emt 0:00:00]} Nc6 {[%emt 0:00:00]} 3. d4 {[%emt 0:00:12]} cxd4 {[%emt 0:00:10]} 4. Nxd4 {[%emt 0:00:11]} g6 {[%emt 0:00:08]} 5. Nxc6 {[%emt 0:04:02]} bxc6 {[%emt 0:00:10]} 6. Qd4 {[%emt 0:00:39]} Nf6 {[%emt 0:00:23]} 7. Bg2 Bg7 8. O-O {[%emt 0:01:27]} O-O {[%emt 0:04:58]} 9. c4 {[%emt 0:00:49]} Ba6 {[%emt 0:06:33]} 10. Rd1 {[%emt 0:09:05]} d5 {[%emt 0:04:06]} 11. Qh4 {[%emt 0:19:20]} Bxc4 {[%emt 0:00:54]} 12. Nc3 {[%emt 0:00:17]} Nd7 {[%emt 0:19:54]} 13. Bg5 {[%emt 0:05:09]} f6 {[%emt 0:02:04]} 14. Bh6 {[%emt 0:02:52]} e6 {[%emt 0:07:53]} 15. b3 {[%emt 0:08:38]} Ba6 {[%emt 0:00:41]} 16. Rac1 {[%emt 0:05:28]} f5 {[%emt 0:08:00]} 17. Bg5 {[%emt 0:02:42]} Qa5 {[%emt 0:09:02]} 18. Na4 {[%emt 0:07:21]} Bxe2 {[%emt 0:04:13]} 19. Re1 {[%emt 0:02:59]} Qa6 {[%emt 0:00:50]} 20. Nc3 {[%emt 0:04:07]} Bxc3 {[%emt 0:02:15]} 21. Rxc3 {[%emt 0:00:02]} e5 {[%emt 0:00:25]} 22. a4 {[%emt 0:06:07]} e4 {[%emt 0:11:49]} 23. Be3 Rae8 {[%emt 0:03:38]} 24. Bd4 {[%emt 0:06:45]} Rf7 {[%emt 0:00:51]} 25. Qf4 {[%emt 0:01:07]} c5 {[%emt 0:01:11]} 26. Bxc5 {[%emt 0:02:38]} Nxc5 {[%emt 0:00:10]} 27. Rxc5 {[%emt 0:00:06]} d4 {[%emt 0:00:04]} 28. Rxe2 {[%emt 0:04:15]} Qxe2 {[%emt 0:00:07]} 29. Bf1 {[%emt 0:00:11]} Qf3 {[%emt 0:08:11]} 30. Bc4 {[%emt 0:00:11]} Qxf4 {[%emt 0:00:08]} 31. gxf4 {[%emt 0:00:05]} Ree7 {[%emt 0:00:37]} 32. Kf1 {[%emt 0:00:49]} Kg7 {[%emt 0:01:41]} 33. Bxf7 {[%emt 0:00:20]} Kxf7 {[%emt 0:00:28]} 34. b4 {[%emt 0:00:13]} Ke6 {[%emt 0:00:50]} 35. b5 {[%emt 0:01:52]} Kd6 {[%emt 0:00:39]} 36. Rc6+ {[%emt 0:00:23]} Kd5 {[%emt 0:00:05]} 37. Ke2 {[%emt 0:00:50]} g5 {[%emt 0:01:20]} 38. fxg5 {[%emt 0:00:27]} f4 {[%emt 0:00:11]} 39. h4 {[%emt 0:00:38]} d3+ {[%emt 0:01:33]} 40. Ke1 {[%emt 0:00:00]} e3 {[%emt 0:00:00]} 41. fxe3 {[%emt 0:13:45]} fxe3 {[%emt 0:00:43]} 42. a5 {[%emt 0:04:36]} Re4 {[%emt 0:05:31]} 43. Rc3 {[%emt 0:03:42]} Rd4 {[%emt 0:00:45]} 44. Kd1 {[%emt 0:01:57]} Ke4 {[%emt 0:00:19]} 45. Rb3 {[%emt 0:03:33]} Kf3 {[%emt 0:03:45]} 46. b6 {[%emt 0:00:32]} Kf2 {[%emt 0:01:51]} 47. Rb1 {[%emt 0:03:06]} d2 {[%emt 0:00:47]} 0-1

[Event "WSCC  M50 2019"]
[Site "Bucharest"]
[Date "2019.11.12"]
[Round "1.23"]
[White "Managadze, Nikoloz"]
[Black "Sabah, Iraj"]
[Result "1-0"]
[ECO "A30"]
[WhiteElo "2450"]
[BlackElo "2019"]
[Annotator "RC"]
[PlyCount "75"]
[EventDate "2019.11.12"]
[EventType "swiss"]
[EventCountry "ROU"]
[SourceTitle "playchess.com"]
[Source "ChessBase"]
[SourceQuality "1"]
[TimeControl "40/5400+30:1800+30"]

1. Nf3 {[%emt 0:00:00]} Nf6 {[%emt 0:00:03]} 2. c4 {[%emt 0:00:03]} e6 {[%emt 0:00:40]} 3. g3 {[%emt 0:02:48]} b6 {[%emt 0:00:19]} 4. Bg2 {[%emt 0:00:16]} Bb7 {[%emt 0:00:01]} 5. O-O {[%emt 0:00:22]} c5 {[%emt 0:02:01]} 6. Nc3 {[%emt 0:01:25]} Be7 {[%emt 0:00:33]} 7. d4 {[%emt 0:00:21]} cxd4 {[%emt 0:00:05]} 8. Qxd4 {[%emt 0:00:09]} Nc6 {[%emt 0:02:47]} 9. Qf4 {[%emt 0:00:36]} O-O {[%emt 0:00:39]} 10. Rd1 {[%emt 0:00:45]} Rc8 {[%emt 0:06:59]} 11. e4 {[%emt 0:05:23]} Na5 {[%emt 0:03:49]} 12. b3 {[%emt 0:04:37]} Bb4 {[%emt 0:03:39]} 13. Bb2 {[%emt 0:05:19]} Bxc3 {[%emt 0:03:01]} 14. Bxc3 {[%emt 0:00:05]} Nxe4 {[%emt 0:00:18]} 15. Bxa5 {[%emt 0:00:21]} bxa5 {[%emt 0:00:08]} 16. Ne5 {[%emt 0:00:07]} Nc3 {[%emt 0:01:32]} 17. Qd2 {[%emt 0:12:17]} Bxg2 {[%emt 0:01:32]} 18. Qxc3 {[%emt 0:00:06]} Bc6 {[%emt 0:03:28]} 19. Rd6 {[%emt 0:00:13]} Qc7 {[%emt 0:00:50]} 20. Rad1 {[%emt 0:00:15]} Rfd8 {[%emt 0:06:32]} 21. Nxc6 {[%emt 0:15:05]} dxc6 {[%emt 0:00:09]} 22. c5 {[%emt 0:00:04]} Rxd6 {[%emt 0:01:28]} 23. cxd6 {[%emt 0:00:07]} Qb6 {[%emt 0:02:02]} 24. d7 {[%emt 0:02:35]} Rd8 {[%emt 0:00:33]} 25. Rd6 {[%emt 0:00:13]} Qc7 {[%emt 0:03:04]} 26. Qxc6 {[%emt 0:02:18]} Qxc6 {[%emt 0:00:22]} 27. Rxc6 {[%emt 0:00:06]} Kf8 {[%emt 0:00:09]} 28. Rc7 {[%emt 0:00:31]} a4 {[%emt 0:02:35]} 29. b4 {[%emt 0:00:24]} a6 {[%emt 0:01:08]} 30. Ra7 {[%emt 0:01:40]} a3 {[%emt 0:00:54]} 31. Rxa6 {[%emt 0:02:17]} Rxd7 {[%emt 0:00:00]} 32. Rxa3 {[%emt 0:00:09]} Ke7 {[%emt 0:00:39]} 33. b5 {[%emt 0:01:48]} Rb7 {[%emt 0:00:57]} 34. Ra5 {[%emt 0:01:48]} Kd6 {[%emt 0:00:17]} 35. a4 {[%emt 0:00:14]} Kc5 {[%emt 0:00:16]} 36. Ra6 {[%emt 0:00:15]} h5 {[%emt 0:01:44]} 37. h4 {[%emt 0:00:11]} e5 {[%emt 0:00:33]} 38. Kf1 {[%emt 0:00:31]} 1-0